bitfinex-derivatives/quotes_ETHF0:USTF0_20251210
["timestamp","ask_amount","ask_price","bid_price","bid_amount"]
[1765367056551,5.4064,3308.5,3308.0,1.2436]
[1765367056745,2.0207,3307.9,3307.8,4.25345296]
[1765367056947,4.1512,3307.9,3307.8,4.25345296]
[1765367057148,3.2078,3308.1,3307.8,4.25345296]
[1765367057348,3.2078,3308.1,3308.0,5.2828]
[1765367059956,5.41090632,3309.0,3308.9,2.1549]
[1765367060156,9.6848462,3309.0,3308.0,1.0317]
[1765367060355,5.21733988,3308.9,3308.8,2.1549]
[1765367060954,5.21733988,3308.9,3307.8,0.00235296]
[1765367061161,4.1512,3308.2,3308.1,2.1549]
[1765367061752,2.0207,3308.2,3308.1,2.1549]
[1765367062552,1.2552,3308.5,3308.1,4.2511]
[1765367062850,2.77579592,3308.4,3308.3,4.2511]
[1765367063361,0.75509592,3308.4,3308.3,4.2511]
[1765367064557,3.2078,3308.6,3308.5,4.2511]
[1765367064857,6.29440283,3308.6,3308.5,4.2511]
[1765367065267,4.27372181,3308.6,3308.5,4.2511]
[1765367065446,6.29442181,3308.6,3308.5,4.2511]
[1765367065654,8.42492181,3308.6,3308.5,2.1549]
[1765367066153,4.27372181,3308.6,3308.5,4.2511]
[1765367066355,0.00450632,3309.0,3308.9,4.2511]
[1765367067862,1.26640632,3309.0,3308.9,4.2513]
[1765367068154,0.00450632,3309.0,3308.9,4.2513]
[1765367071267,5.45780632,3309.0,3308.9,2.2146]
[1765367071664,3.32240632,3309.0,3308.9,4.2513]
[1765367071863,2.056,3308.8,3308.7,7.4591]
[1765367072860,4.1914,3308.8,3308.7,3.2078]
[1765367073956,4.1914,3308.8,3308.7,5.4224]
[1765367075256,3.32240632,3309.0,3308.9,4.2513]
[1765367075457,4.06399213,3309.0,3308.9,4.2513]
[1765367075663,6.19939213,3309.0,3308.9,2.2146]
[1765367075966,2.056,3308.8,3308.7,5.4224]
[1765367076167,4.1914,3308.8,3308.7,5.4224]
[1765367076363,2.056,3308.8,3308.7,7.4591]
[1765367077057,4.1914,3308.8,3308.7,5.4224]
[1765367077567,2.056,3308.8,3308.7,7.4591]
[1765367079053,3.32240632,3309.0,3308.9,2.2146]
[1765367079365,6.19934975,3309.0,3308.9,2.2146]
[1765367079760,3.32240632,3309.0,3308.9,4.2513]
[1765367080164,5.45780632,3309.0,3308.9,4.2513]
[1765367080760,0.00450632,3309.0,3308.9,4.2513]
[1765367081665,5.45780632,3309.0,3308.9,2.2146]
[1765367082458,0.00450632,3309.0,3308.9,4.2513]
[1765367083269,3.32240632,3309.0,3308.9,4.2513]
[1765367084768,0.00450632,3309.0,3308.9,4.2513]
[1765367085466,3.32240632,3309.0,3308.9,4.2513]
[1765367087261,1.26640632,3309.0,3308.9,4.2513]
[1765367087458,0.00450632,3309.0,3308.9,4.2513]
[1765367088669,3.32240632,3309.0,3308.9,4.2513]
[1765367089058,1.26640632,3309.0,3308.9,4.2513]
[1765367089863,0.00450632,3309.0,3308.9,4.2513]
[1765367091666,2.056,3308.8,3308.7,3.2078]
[1765367091869,2.056,3308.8,3308.7,7.4591]
[1765367092070,4.1914,3308.8,3308.7,7.4591]
[1765367092470,4.1914,3308.8,3308.7,5.4224]
[1765367093172,4.1914,3308.8,3308.7,3.2078]
[1765367093365,4.9339093,3308.8,3308.7,3.2078]
[1765367095175,4.9339093,3308.8,3308.7,5.4224]
[1765367095866,4.9339093,3308.8,3308.7,7.4591]
[1765367096069,0.7425093,3308.8,3308.7,7.4591]
[1765367096375,2.7939595,3308.9,3308.8,4.2513]
[1765367096573,3.10537138,3308.9,3308.8,4.2513]
[1765367096771,5.24077138,3308.9,3308.8,4.2513]
[1765367096966,4.1914,3308.8,3308.7,3.2078]
[1765367097173,4.1914,3308.4,3308.3,3.2078]
[1765367097674,4.1914,3308.4,3308.3,5.0694]
[1765367097875,4.1914,3308.4,3308.3,6.9356]
[1765367098466,4.1914,3308.4,3308.3,5.0694]
[1765367099775,4.1914,3308.4,3308.3,3.2078]
[1765367099977,4.92928291,3308.4,3308.3,3.2078]
[1765367100270,4.92928291,3308.4,3307.8,6.93795296]
[1765367100271,3.821,3307.9,3307.8,6.93795296]
[1765367100667,3.821,3307.9,3307.8,3.21015296]
[1765367100873,4.87067121,3307.9,3307.8,3.21015296]
[1765367101076,4.55918427,3307.9,3307.8,3.21015296]
[1765367101375,4.55918427,3307.9,3307.8,6.93795296]
[1765367101772,4.55918427,3307.9,3307.8,5.07175296]
[1765367102171,3.821,3307.6,3307.5,0.00453007]
[1765367102370,3.821,3307.6,3307.5,1.86613007]
[1765367102570,3.821,3307.6,3307.5,0.00453007]
[1765367102785,3.821,3307.6,3307.5,3.73233007]
[1765367103279,3.821,3307.6,3307.5,0.00828144]
[1765367103673,4.55790942,3307.6,3307.5,0.00828144]
[1765367104676,4.86650579,3307.6,3307.5,0.00828144]
[1765367105178,4.55790942,3307.6,3307.5,0.00828144]
[1765367106377,5.1056,3307.7,3307.6,3.7278]
[1765367106576,3.2078,3307.7,3307.6,3.7278]
[1765367107374,3.821,3307.6,3307.5,0.00828144]
[1765367107778,1.8978,3307.6,3307.5,3.73608144]
[1765367108079,3.821,3307.6,3307.5,3.73608144]
[1765367108280,3.821,3307.6,3307.5,1.86988144]
[1765367108576,4.7277,3307.0,3306.9,5.093]
[1765367108976,4.7277,3307.0,3306.9,3.2078]
[1765367109379,4.7277,3307.0,3306.9,5.09653286]
[1765367109583,4.7277,3307.0,3306.9,3.21133286]
[1765367110175,4.7277,3307.0,3306.9,0.00353286]
[1765367110776,3.605,3306.7,3306.6,0.00453007]
[1765367110975,1.765,3305.9,3305.8,6.8687]
[1765367111184,1.1227,3306.5,3306.4,3.6609]
[1765367111585,1.1227,3307.0,3306.4,3.6609]
[1765367111780,1.1227,3307.0,3306.4,3.66356961]
[1765367111781,1.12485264,3307.0,3306.4,3.66356961]
[1765367112081,4.7277,3306.5,3306.4,0.00720668]
[1765367112280,4.7277,3306.5,3306.4,1.89240668]
[1765367112884,4.7277,3306.5,3305.9,3.2078]
[1765367113086,2.8877,3306.0,3305.9,6.8687]
[1765367113284,1.1227,3306.0,3305.9,6.8687]
[1765367113886,1.1227,3306.0,3305.9,6.87199865]
[1765367114085,1.1227,3306.5,3305.9,6.87199865]
[1765367114385,4.7277,3306.5,3306.4,1.8852]
[1765367115382,4.7277,3306.5,3305.9,3.21109865]
[1765367115789,4.7277,3306.5,3306.4,1.8852]
[1765367116290,4.7277,3306.5,3305.9,3.21109865]
[1765367116684,4.7277,3306.5,3306.4,1.8852]
[1765367117689,4.7277,3306.5,3306.4,3.6609]
[1765367118593,4.7277,3306.5,3306.4,1.8852]
[1765367119195,2.88985264,3307.0,3306.9,3.6609]
[1765367119492,0.00215264,3307.0,3306.9,3.6609]
[1765367119688,2.88985264,3307.0,3306.9,3.6609]
[1765367119894,1.12485264,3307.0,3306.9,3.6609]
[1765367120094,0.00215264,3307.0,3306.9,3.6609]
[1765367120689,2.88985264,3307.0,3306.9,3.6609]
[1765367120993,4.72985264,3307.0,3306.9,3.6609]
[1765367121395,0.00453007,3307.3,3307.2,3.6609]
[1765367121695,3.2078,3307.9,3307.8,3.6609]
[1765367122090,6.8128,3307.9,3307.2,3.2078]
[1765367122287,3.605,3307.3,3307.2,3.2078]
[1765367122487,2.8877,3307.5,3307.4,3.6609]
[1765367122687,4.7277,3307.5,3307.4,1.8852]
[1765367123196,2.8877,3307.5,3307.4,3.6609]
[1765367123385,1.1227,3307.5,3307.4,3.6609]
[1765367123589,1.76953707,3307.8,3307.7,1.8852]
[1765367124187,3.60953707,3307.8,3307.2,3.2078]
[1765367125391,3.60953707,3307.8,3307.7,1.8852]
[1765367125596,0.00453707,3307.8,3307.7,3.6609]
[1765367125896,0.00217053,3307.9,3307.8,3.6609]
[1765367129195,1.72077053,3307.9,3307.8,3.6609]
[1765367129398,0.00217053,3307.9,3307.8,3.6609]
[1765367137510,3.46417053,3307.9,3307.6,3.2078]
[1765367137710,3.462,3307.7,3307.6,3.2078]
[1765367141015,3.462,3307.7,3307.6,3.16354335]
[1765367141312,1.0254,3307.5,3307.2,3.2078]
[1765367141610,3.462,3307.2,3306.8,3.2078]
[1765367141814,3.462,3306.9,3306.8,3.2078]
[1765367142806,3.462,3306.9,3306.8,4.9142]
[1765367143011,3.462,3306.6,3306.5,1.71093707]
[1765367143614,1.7186,3306.6,3306.5,3.49983707]
[1765367144009,2.744,3307.0,3306.9,3.4822]
[1765367144314,1.0254,3307.5,3306.9,6.69]
[1765367144519,4.92857053,3307.9,3307.8,1.7064]
[1765367144728,0.00217053,3307.9,3307.6,3.2078]
[1765367144909,0.00217053,3307.9,3307.8,3.4627]
[1765367145109,3.462,3307.7,3307.6,4.9142]
[1765367145410,3.462,3307.3,3307.2,4.9142]
[1765367145616,1.0254,3307.5,3307.4,3.4433]
[1765367146218,2.744,3307.5,3307.4,3.4433]
[1765367146422,2.744,3307.5,3307.4,1.7064]
[1765367146717,3.462,3307.3,3307.2,3.2078]
[1765367147310,1.7186,3306.7,3306.6,3.2078]
[1765367147617,1.7434,3307.3,3306.6,3.2078]
[1765367148119,1.7186,3306.7,3306.6,4.9142]
[1765367148323,3.462,3306.7,3306.6,3.2078]
[1765367149515,3.462,3306.6,3306.5,0.00453707]
[1765367150115,3.462,3306.6,3306.2,3.2078]
[1765367150316,3.462,3306.6,3305.0,0.9941]
[1765367150317,3.2078,3306.3,3305.0,0.9941]
[1765367150618,3.2078,3305.6,3305.5,4.4894]
[1765367151322,6.6698,3305.6,3305.5,0.00366886]
[1765367151717,12.6698,3305.6,3305.5,0.00366886]
[1765367152221,12.6698,3305.6,3305.2,0.00453707]
[1765367152222,3.462,3305.3,3305.2,0.00453707]
[1765367153219,3.46521721,3305.3,3305.2,0.00574538]
[1765367153420,1.72181721,3305.3,3305.2,3.50104538]
[1765367153724,1.72181721,3305.3,3305.2,1.71214538]
[1765367153924,3.46521721,3305.3,3305.2,0.00574538]
[1765367154328,3.46521721,3305.3,3305.2,1.71214538]
[1765367154329,1.72181721,3305.3,3305.2,1.71214538]
[1765367154620,0.00321721,3305.3,3305.2,3.50104538]
[1765367155618,1.72181721,3305.3,3305.2,1.71214538]
[1765367155925,1.72181721,3305.3,3305.2,0.00574538]
[1765367155926,3.46521721,3305.3,3305.2,0.00574538]
[1765367156721,1.72181721,3305.3,3305.2,1.71214538]
[1765367156921,3.46521721,3305.3,3305.2,0.00574538]
[1765367158221,1.9441,3304.1,3304.0,3.0287]
[1765367158427,5.1519,3304.1,3304.0,3.0287]
[1765367158623,7.0991,3304.1,3304.0,0.1]
[1765367158819,5.1519,3304.1,3304.0,5.1405]
[1765367159226,3.2078,3304.1,3304.0,5.1405]
[1765367159419,3.2078,3304.5,3304.4,3.9313]
[1765367159618,3.2078,3305.0,3304.9,3.9313]
[1765367159819,8.1887,3305.0,3304.5,1.1092]
[1765367160028,8.1887,3305.0,3304.0,1.2092]
[1765367160625,3.8913,3304.1,3304.0,0.1]
[1765367160823,7.0991,3304.1,3304.0,0.1]
[1765367161032,3.2078,3304.1,3304.0,4.0313]
[1765367161324,5.1519,3304.1,3304.0,2.0346]
[1765367161529,7.0991,3304.1,3304.0,0.1]
[1765367163726,5.1519,3304.1,3304.0,2.0346]
[1765367163917,3.2078,3304.1,3304.0,4.0313]
[1765367164230,3.2078,3304.1,3304.0,2.0346]
[1765367164231,5.1519,3304.1,3304.0,2.0346]
[1765367164526,7.0991,3304.1,3304.0,0.1]
[1765367165836,3.8913,3303.8,3303.7,0.00453707]
[1765367166325,1.0896,3303.6,3302.4,5.0405]
[1765367166526,3.2078,3303.0,3302.9,3.9313]
[1765367166722,3.2078,3303.0,3302.9,4.49240533]
[1765367167225,8.1614,3303.0,3302.9,0.56110533]
[1765367167631,3.2078,3303.0,3302.9,4.49240533]
[1765367167820,3.2078,3303.4,3302.9,4.49240533]
[1765367168636,5.1519,3303.4,3303.3,1.9346]
[1765367168823,3.2078,3303.4,3303.3,4.41800533]
[1765367169028,3.2078,3303.9,3303.8,3.9457]
[1765367169230,4.13163707,3304.1,3303.3,0.56110533]
[1765367169821,4.13163707,3304.1,3303.7,0.56110533]
[1765367170133,0.00453707,3304.1,3303.7,4.50680533]
[1765367170822,2.0685,3304.0,3303.9,0.56110533]
[1765367171022,4.1271,3304.0,3303.9,0.56110533]
[1765367172226,10.1271,3304.0,3303.9,0.56110533]
[1765367172433,4.1271,3303.3,3303.2,3.2078]
[1765367172626,2.0685,3302.9,3302.8,5.2312]
[1765367172831,0.00335661,3302.9,3302.8,7.1535]
[1765367173028,2.07185661,3302.9,3302.8,2.0234]
[1765367173425,4.1271,3302.7,3302.6,0.00303916]
[1765367173934,2.0685,3301.6,3301.1,3.2078]
[1765367174138,2.0685,3301.2,3300.7,3.2078]
[1765367174333,2.0685,3301.2,3300.7,3.21015951]
[1765367174932,2.0685,3300.8,3300.7,3.21015951]
[1765367175128,4.1271,3300.8,3300.7,3.21015951]
[1765367175437,0.00454415,3301.3,3301.2,5.2089]
[1765367175635,1.2596,3303.0,3301.8,5.2089]
[1765367175841,4.1271,3302.6,3302.1,3.2078]
[1765367176139,4.1271,3302.2,3302.1,3.2078]
[1765367176329,0.73352197,3302.2,3300.8,3.2078]
[1765367176535,1.28749021,3302.4,3302.3,2.0234]
[1765367176839,3.2078,3302.5,3302.3,2.0234]
[1765367177234,3.2078,3302.5,3301.4,3.2078]
[1765367177235,2.0685,3302.4,3301.4,3.2078]
[1765367177434,3.2078,3302.1,3301.2,1.26774415]
[1765367177635,4.1271,3301.3,3301.2,0.00454415]
[1765367178041,3.2078,3301.7,3301.2,0.00454415]
[1765367178342,4.1271,3301.3,3301.2,0.00454415]
[1765367178543,3.2078,3301.7,3301.2,0.00454415]
[1765367178841,4.1271,3301.3,3301.2,0.00454415]
[1765367179343,3.2078,3301.7,3301.2,0.00454415]
[1765367179538,3.2078,3301.7,3301.2,1.26774415]
[1765367180042,3.2078,3301.7,3301.2,0.00454415]
[1765367180239,3.2078,3301.3,3300.7,0.00235951]
[1765367180843,3.2078,3301.3,3301.2,3.9457]
[1765367181340,3.2078,3301.3,3300.7,0.00235951]
[1765367181643,4.1271,3300.8,3300.7,0.00235951]
[1765367182140,4.1271,3300.3,3299.3,3.2078]
[1765367182335,0.00454415,3300.1,3299.3,3.2078]
[1765367182538,3.2078,3300.0,3299.3,3.2078]
[1765367182736,4.1271,3299.7,3299.6,0.01507933]
[1765367182938,3.2078,3300.0,3299.6,0.01507933]
[1765367183140,4.1271,3299.7,3299.6,0.01507933]
[1765367183638,3.21172661,3300.0,3299.6,0.01507933]
[1765367183639,0.00392661,3300.0,3299.9,2.0234]
[1765367183845,0.00392661,3300.0,3299.9,3.9457]
[1765367184749,3.2078,3300.9,3300.0,3.9457]
[1765367185043,3.2078,3300.9,3300.1,3.2078]
[1765367185245,2.0586,3300.2,3300.1,3.2078]
[1765367185443,3.2078,3300.9,3300.1,3.2078]
[1765367185643,0.73726134,3300.8,3300.2,0.00454415]
[1765367185842,4.1271,3300.6,3300.5,0.01507933]
[1765367186039,2.0685,3300.6,3300.5,0.01507933]
[1765367186236,4.1271,3300.3,3300.2,0.00454415]
[1765367186541,4.1271,3300.2,3300.1,0.00263051]
[1765367186842,4.85963036,3300.2,3300.1,0.00263051]
[1765367187244,0.73253036,3300.2,3300.1,0.00263051]
[1765367189446,8.3329696,3300.2,3298.9,3.2078]
[1765367189639,0.7681,3299.1,3298.0,3.2078]
[1765367189839,3.2078,3298.7,3298.0,3.2078]
[1765367190043,0.73253036,3298.6,3298.0,3.2078]
[1765367190240,0.00454415,3298.9,3298.5,3.2078]
[1765367190450,0.00454415,3298.9,3298.1,3.2078]
[1765367191242,0.00454415,3298.9,3298.6,3.2078]
[1765367192139,0.00454415,3298.9,3298.8,4.4243]
[1765367192545,0.00454415,3298.9,3298.8,2.1922]
[1765367192751,0.00454415,3298.9,3298.8,4.4243]
[1765367193639,0.00454415,3298.9,3298.8,2.1922]
[1765367193845,0.00454415,3298.9,3298.4,1.413]
[1765367194149,0.00454415,3298.9,3298.8,4.4243]
[1765367194345,3.2078,3299.4,3299.3,4.4243]
[1765367194653,3.2078,3299.9,3299.3,4.4243]
[1765367195552,3.21234415,3299.9,3299.3,4.42884415]
[1765367196449,3.21234415,3299.9,3299.8,5.8373]
[1765367196651,3.21234415,3299.9,3299.8,4.4243]
[1765367197055,3.21234415,3299.9,3299.8,5.8373]
[1765367197352,0.00454415,3299.9,3299.8,5.8373]
[1765367198549,0.00357682,3300.9,3299.7,3.2078]
[1765367198757,4.5596,3300.8,3300.7,3.2078]
[1765367198952,4.5596,3300.8,3300.7,0.00129609]
[1765367199347,4.5596,3300.4,3300.3,3.2078]
[1765367200360,1.3438,3300.5,3300.3,5.4]
[1765367200656,5.27622049,3300.4,3300.3,3.2078]
[1765367200956,5.27622049,3300.4,3299.6,3.2078]
[1765367201153,2.2272,3299.7,3299.6,3.2078]
[1765367201956,4.5596,3299.7,3299.6,3.2078]
[1765367202164,5.27788471,3299.7,3299.6,3.2078]
[1765367202452,5.9034,3299.4,3299.3,0.00454415]
[1765367202656,9.82948471,3299.4,3299.3,0.00454415]
[1765367202851,5.9034,3298.8,3298.7,3.2078]
[1765367203053,6.62168471,3298.8,3298.7,3.2078]
[1765367203354,0.71828471,3298.8,3298.7,7.6321]
[1765367203658,4.5516,3299.4,3298.7,7.6321]
[1765367203962,1.60043924,3300.2,3299.3,4.4243]
[1765367204154,4.5596,3299.7,3299.2,3.2078]
[1765367204457,2.2272,3299.3,3299.2,3.2078]
[1765367204659,3.2078,3299.9,3299.2,5.4]
[1765367204854,4.5516,3300.5,3299.8,4.4243]
[1765367205160,0.68637715,3300.4,3299.8,4.4243]
[1765367205767,0.68637715,3300.4,3299.8,2.1922]
[1765367206263,2.2272,3299.8,3299.7,3.2078]
[1765367206471,1.3438,3300.0,3299.7,3.2078]
[1765367207364,0.68771192,3299.9,3299.8,2.1922]
[1765367207576,4.5516,3300.5,3299.9,4.4243]
[1765367207869,2.2272,3300.0,3299.7,3.2078]
[1765367208071,3.571,3300.0,3299.7,3.2078]
[1765367208271,4.5596,3299.8,3299.7,3.2078]
[1765367208674,5.24757859,3299.8,3299.7,3.2078]
[1765367210474,0.68797859,3299.8,3299.7,5.4]
[1765367210675,0.68797859,3299.9,3299.7,5.4]
[1765367210868,1.61399597,3301.0,3300.0,0.5752]
[1765367211167,3.2078,3302.3,3300.8,3.2078]
[1765367211469,3.2078,3303.2,3301.7,3.2078]
[1765367211772,3.2078,3303.2,3302.3,3.2078]
[1765367212266,1.34708218,3302.4,3302.3,3.21062015]
[1765367214773,5.90668218,3302.4,3302.3,3.21062015]
[1765367215368,1.34708218,3302.4,3302.3,3.21062015]
[1765367216271,0.00328218,3302.4,3302.3,3.21062015]
[1765367217477,0.00454415,3302.7,3302.3,9.21062015]
[1765367217781,0.00454415,3302.7,3302.3,3.21062015]
[1765367218175,3.2078,3304.2,3302.3,3.21062015]
[1765367218381,5.3188,3303.5,3303.4,3.2078]
[1765367218579,5.32144785,3303.5,3303.4,3.2078]
[1765367218779,0.00264785,3303.5,3303.4,3.2078]
[1765367219172,5.32144785,3303.5,3303.4,3.2078]
[1765367219582,5.32144785,3303.5,3302.9,3.2078]
[1765367219583,2.6748,3303.0,3302.9,3.2078]
[1765367219880,0.00264785,3303.5,3302.9,3.2078]
[1765367220076,5.3188,3303.0,3302.9,3.2078]
[1765367221683,0.00264785,3303.5,3302.9,3.2078]
[1765367222476,0.00264785,3303.5,3302.3,0.00282015]
[1765367222477,0.00264785,3303.5,3303.4,5.1573]
[1765367223184,0.00264785,3303.5,3303.3,3.2078]
[1765367223374,0.00264785,3303.5,3303.4,5.1573]
[1765367224574,0.00454415,3303.8,3303.4,5.1573]
[1765367224775,3.2078,3305.3,3304.6,2.5443]
[1765367224980,3.2078,3305.3,3304.6,5.1573]
[1765367225486,3.2078,3305.3,3305.2,5.1573]
[1765367225679,1.3438,3305.4,3305.3,2.5443]
[1765367225885,0.00454415,3305.6,3305.5,2.5443]
[1765367226088,0.00714951,3305.6,3305.5,5.7521]
[1765367226288,0.00714951,3305.6,3305.5,8.3651]
[1765367227280,4.7521,3306.1,3305.5,8.3651]
[1765367227281,3.2078,3306.1,3306.0,5.1573]
[1765367227482,4.7521,3306.8,3306.0,8.3651]
[1765367228280,0.00453714,3306.7,3306.0,3.2078]
[1765367228682,0.00453714,3306.7,3306.6,5.1573]
[1765367229483,0.00453714,3306.7,3306.6,3.2078]
[1765367229990,0.00453714,3306.7,3306.6,5.7521]
[1765367230186,0.00453714,3306.7,3306.6,3.2078]
[1765367230392,0.00453714,3306.7,3306.2,3.2078]
[1765367231086,0.00453714,3306.7,3306.6,3.2078]
[1765367231291,2.67933714,3306.7,3306.6,3.2078]
[1765367231495,0.00453714,3306.7,3306.6,3.2078]
[1765367232690,2.67933714,3306.7,3306.6,3.2078]
[1765367232887,5.21803714,3306.7,3306.6,3.2078]
[1765367233093,5.2105,3306.3,3306.2,3.2078]
[1765367233392,0.00453714,3306.7,3306.2,3.2078]
[1765367233794,2.6718,3306.3,3306.2,3.2078]
[1765367233991,5.2105,3306.3,3306.2,3.2078]
[1765367234996,2.6718,3305.9,3305.4,3.2078]
[1765367235698,2.6718,3305.9,3305.8,3.2078]
[1765367235892,1.5057,3306.1,3305.8,3.2078]
[1765367236293,1.5057,3306.1,3306.0,2.4964]
[1765367236691,0.00453714,3306.7,3306.0,5.0561]
[1765367236991,2.6718,3306.6,3306.5,3.2078]
[1765367237195,2.6718,3306.6,3305.9,3.2078]
[1765367237496,1.5057,3306.0,3305.9,3.2078]
[1765367237897,1.5057,3306.0,3305.5,3.2078]
[1765367238491,2.6718,3305.6,3305.5,3.2078]
[1765367238796,5.2105,3305.6,3305.5,3.2078]
[1765367238996,2.6718,3305.6,3305.5,3.2078]
[1765367239198,1.5057,3306.0,3305.5,5.7042]
[1765367241194,1.5057,3306.0,3305.9,2.4964]
[1765367241395,1.5057,3306.0,3305.9,8.2639]
[1765367241597,0.00453714,3306.7,3305.9,8.2639]
[1765367241792,0.00453714,3306.7,3306.3,3.2078]
[1765367242005,5.2105,3306.4,3305.9,3.2078]
[1765367242402,1.5057,3306.0,3305.9,3.2078]
[1765367242608,6.7162,3306.0,3305.9,3.2078]
[1765367243099,4.1775,3306.0,3305.9,3.2078]
[1765367243904,1.5057,3306.0,3305.9,3.2078]
[1765367244905,1.5057,3306.0,3305.9,5.7042]
[1765367245505,1.5057,3306.0,3305.9,2.4964]
[1765367245905,0.00453714,3306.7,3305.9,8.2639]
[1765367247998,1.5052,3306.0,3305.9,5.7042]
[1765367248204,6.2627,3306.0,3305.9,3.2078]
[1765367248708,0.00453714,3306.7,3305.9,8.1117]
[1765367249106,0.64807787,3306.7,3305.9,8.1117]
[1765367249411,1.5052,3306.0,3305.9,5.5573]
[1765367249608,0.00453714,3306.7,3305.9,8.1117]
[1765367249998,0.00453714,3306.7,3306.3,3.2078]
[1765367250308,0.00453714,3306.7,3305.9,3.2078]
[1765367251211,0.64963648,3306.7,3305.9,3.2078]
[1765367251508,0.64963648,3306.7,3306.6,2.3495]
[1765367251900,0.00453714,3306.7,3306.6,4.8982]
[1765367252300,0.65053312,3306.7,3306.6,4.8982]
[1765367252505,0.00453714,3306.7,3306.6,4.8982]
[1765367253806,0.00355745,3306.8,3306.7,4.8429]
[1765367254002,0.00355745,3306.8,3306.7,3.2078]
[1765367254003,2.4042,3306.8,3306.7,3.2078]
[1765367254211,2.4042,3306.8,3306.5,2.3495]
[1765367254212,1.5052,3306.6,3306.5,2.3495]
[1765367254412,2.15141264,3306.6,3306.5,2.3495]
[1765367254713,0.64621264,3306.6,3306.5,4.8394]
[1765367254908,0.0023061,3306.6,3306.5,4.8394]
[1765367257114,0.00298946,3306.9,3306.8,4.7564]
[1765367257318,0.00298946,3306.9,3306.8,7.9642]
[1765367258118,0.00678819,3306.9,3306.8,7.9642]
[1765367258312,0.64773144,3307.6,3307.5,4.7229]
[1765367258514,0.64773144,3308.2,3307.5,7.9307]
[1765367258716,0.64773144,3308.3,3307.5,7.9307]
[1765367259020,0.64773144,3308.3,3308.2,4.695]
[1765367259318,0.65144304,3308.3,3308.2,4.6981691]
[1765367260520,0.0037116,3308.3,3308.2,7.9059691]
[1765367261020,0.65028703,3308.3,3308.2,2.3506691]
[1765367261222,4.7612116,3308.3,3308.2,0.0031691]
[1765367261521,0.0037116,3308.3,3308.2,0.0031691]
[1765367261823,0.0037116,3308.3,3308.2,4.5371691]
[1765367263120,4.7612116,3308.3,3308.2,0.0031691]
[1765367263319,5.40664911,3308.3,3308.2,0.0031691]
[1765367263619,4.7575,3308.0,3307.9,0.00453714]
[1765367264617,4.7575,3308.0,3307.9,0.00700058]
[1765367265324,5.40266021,3308.0,3307.9,0.00700058]
[1765367265519,5.40266021,3308.0,3307.9,5.8e-07]
[1765367265721,2.4042,3307.3,3307.2,5.3797]
[1765367266024,1.5052,3307.8,3307.2,5.3797]
[1765367266425,1.5052,3307.8,3307.7,4.3188]
[1765367266617,1.5052,3307.8,3307.7,4.32202541]
[1765367266814,6.2627,3307.8,3307.7,0.00322541]
[1765367267019,0.00453714,3308.1,3308.0,2.1469]
[1765367267218,0.00453714,3308.1,3308.0,4.2938]
[1765367269130,0.00453714,3308.1,3308.0,7.5016]
[1765367270326,1.5052,3309.0,3308.2,4.0772]
[1765367270723,1.5052,3309.0,3308.9,4.077]
[1765367270926,3.2078,3309.3,3309.2,4.077]
[1765367271127,5.612,3309.3,3308.5,3.2078]
[1765367271532,5.61498597,3309.3,3308.5,3.2078]
[1765367271834,5.61498597,3309.3,3309.2,2.0385]
[1765367272031,3.21078597,3309.3,3309.2,4.0528]
[1765367272331,3.21078597,3309.3,3309.2,2.0385]
[1765367272536,5.61498597,3309.3,3309.2,2.0385]
[1765367272737,3.21078597,3309.3,3309.2,2.0385]
[1765367272930,3.21078597,3309.3,3309.2,4.0271]
[1765367273636,1.5052,3309.0,3308.9,5.1709]
[1765367273936,3.9094,3309.0,3308.9,5.1709]
[1765367274234,1.5052,3309.0,3308.9,7.134]
[1765367275034,3.21078597,3309.3,3309.2,1.9631]
[1765367275233,1.5052,3309.0,3308.9,5.1455]
[1765367275434,1.5052,3309.0,3308.9,7.0579]
[1765367276027,3.21078597,3309.3,3309.2,3.8248]
[1765367276433,5.61498597,3309.3,3309.2,1.9124]
[1765367276930,3.21078597,3309.3,3309.2,3.7996]
[1765367278335,0.00298597,3309.3,3309.2,3.7996]
[1765367280426,6.9796,3310.2,3310.1,1.7906]
[1765367280632,3.2078,3310.7,3310.4,1.7906]
[1765367280825,3.2078,3310.7,3310.4,3.5812]
[1765367281131,1.359,3311.5,3310.6,1.7906]
[1765367281328,5.83,3311.0,3310.9,3.2078]
[1765367281636,1.36255029,3311.0,3310.9,3.21079646]
[1765367281830,0.00355029,3311.0,3310.9,3.21079646]
[1765367282138,1.359,3311.5,3310.9,9.21079646]
[1765367282328,1.359,3311.5,3311.4,3.2078]
[1765367282730,1.359,3312.0,3311.4,9.2078]
[1765367282937,1.359,3312.0,3311.9,3.2078]
[1765367283133,1.36118,3312.0,3311.9,3.2078]
[1765367284428,5.83218,3312.0,3311.9,3.2078]
[1765367285540,5.83218,3312.0,3311.6,0.00453007]
[1765367285541,4.471,3311.7,3311.6,0.00453007]
[1765367286435,1.36118,3312.0,3311.6,0.00453007]
[1765367286834,1.36118,3312.0,3311.8,3.2078]
[1765367287134,4.471,3311.9,3311.8,3.2078]
[1765367287437,4.471,3311.3,3311.2,3.2078]
[1765367288241,4.5207,3310.9,3310.8,3.2078]
[1765367288440,4.5207,3310.5,3310.4,3.2078]
[1765367289329,4.5207,3310.5,3310.4,3.21003501]
[1765367289536,2.2123,3310.5,3310.4,3.21003501]
[1765367289738,4.5207,3310.5,3310.4,3.21003501]
[1765367290142,2.2123,3310.5,3310.4,3.21003501]
[1765367290837,1.42040654,3310.8,3310.4,3.21003501]
[1765367291045,2.2123,3310.5,3310.4,3.21003501]
[1765367291535,1.42040654,3310.8,3310.4,5.37243501]
[1765367291741,0.00450654,3310.8,3310.7,4.4029]
[1765367291936,3.63270654,3310.8,3310.4,3.21003501]
[1765367292141,1.42040654,3310.8,3310.7,2.1624]
[1765367292645,0.00450654,3310.8,3310.7,4.4029]
[1765367293739,1.42040654,3310.8,3310.7,2.1624]